bitfinex/quotes_SOLUSD_20250616
["timestamp","ask_amount","ask_price","bid_price","bid_amount"]
[1750050508046,3.00991659,156.79,156.75,23.969498]
[1750050508349,3.00991659,156.79,156.76,25.96]
[1750050508940,3.00991659,156.8,156.75,52.93941459]
[1750050510854,3.00991659,156.8,156.75,26.97941459]
[1750050511026,3.00991659,156.8,156.76,25.96]
[1750050514860,3.00991659,156.79,156.75,23.969498]
[1750050515043,3.00991659,156.79,156.76,25.96]
[1750050515560,3.00991659,156.78,156.76,25.96]
[1750050516954,3.00991659,156.78,156.75,23.969498]
[1750050517144,3.00991659,156.76,156.69,24.78434886]
[1750050517347,3.00991659,156.74,156.7,25.96]
[1750050518254,3.00991659,156.75,156.7,28.96991659]
[1750050518442,3.00991659,156.76,156.7,28.96991659]
[1750050518637,3.00991659,156.74,156.7,25.96]
[1750050519167,3.00991659,156.75,156.7,28.96991659]
[1750050521269,3.00991659,156.73,156.7,26.0]
[1750050521771,9.26351659,156.75,156.7,29.00991659]
[1750050522076,3.00991659,156.75,156.7,29.00991659]
[1750050522435,3.00991659,156.74,156.7,26.0]
[1750050523281,3.00991659,156.76,156.71,3.15207816]
[1750050523499,26.0,156.79,156.75,3.00991659]
[1750050523697,1.6312,156.81,156.76,3.00991659]
[1750050524057,4.64111659,156.81,156.76,3.00991659]
[1750050525176,4.64111659,156.81,156.76,0.14216157]
[1750050525371,4.64111659,156.81,156.76,3.15207816]
[1750050525764,1.6312,156.81,156.76,3.15207816]
[1750050526166,8.52991659,156.82,156.77,3.00991659]
[1750050526679,5.52,156.82,156.78,3.00991659]
[1750050526861,5.52,156.82,156.78,30.66377365]
[1750050527064,5.52,156.82,156.78,37.04199809]
[1750050527560,10.22377365,156.82,156.78,32.33822444]
[1750050528487,10.22377365,156.82,156.78,25.96]
[1750050529784,4.70377365,156.79,156.74,11.08364654]
[1750050529978,4.70377365,156.8,156.75,30.66377365]
[1750050530174,4.70377365,156.8,156.76,25.96]
[1750050530376,5.52,156.82,156.76,25.96]
[1750050530576,5.52,156.82,156.73,18.79181043]
[1750050530577,4.70377365,156.78,156.73,11.08408107]
[1750050530791,4.70377365,156.78,156.74,25.96]
[1750050531359,4.70377365,156.79,156.74,30.66377365]
[1750050531780,4.70377365,156.79,156.74,25.96]
[1750050531781,30.70377365,156.79,156.74,25.96]
[1750050532060,4.70377365,156.78,156.74,25.96]
[1750050532270,4.70377365,156.77,156.72,0.14216157]
[1750050532587,4.70377365,156.78,156.73,25.96]
[1750050532767,4.70377365,156.78,156.73,30.66377365]
[1750050533089,27.636,156.79,156.73,25.96]
[1750050533289,4.70377365,156.78,156.73,30.66377365]
[1750050535387,4.70377365,156.78,156.73,25.96]
[1750050535571,4.70377365,156.78,156.73,30.66377365]
[1750050536388,4.70377365,156.78,156.73,37.04411416]
[1750050538798,4.70377365,156.78,156.73,32.34030982]
[1750050538982,4.70377365,156.78,156.73,30.66377365]
[1750050540093,4.70377365,156.78,156.72,6.52284432]
[1750050540290,4.70377365,156.78,156.74,25.96]
[1750050543471,27.636,156.79,156.74,25.96]
[1750050543670,32.33977365,156.79,156.74,37.04373353]
[1750050543981,4.70377365,156.81,156.75,4.84593522]
[1750050544184,4.70377365,156.81,156.75,11.22548853]
[1750050545110,1.6643,156.83,156.78,4.70377365]
[1750050545425,4.70377365,156.82,156.77,25.96]
[1750050545615,4.70377365,156.81,156.77,25.96]
[1750050549630,4.70377365,156.8,156.77,25.96]
[1750050552216,4.70377365,156.8,156.76,0.14216157]
[1750050553744,27.6643,156.83,156.76,4.70377365]
[1750050553745,1.6643,156.83,156.76,4.70377365]
[1750050553943,4.70377365,156.81,156.75,30.66377365]
[1750050554153,4.70377365,156.8,156.75,4.70377365]
[1750050554450,4.70377365,156.8,156.75,25.96]
[1750050555353,4.70377365,156.8,156.75,37.04334066]
[1750050555523,4.70377365,156.81,156.75,32.33956701]
[1750050555722,4.70377365,156.8,156.75,37.04334066]
[1750050556845,3.0113316,156.81,156.75,35.35089861]
[1750050557024,3.0113316,156.81,156.76,9.53255682]
[1750050557937,29.0113316,156.82,156.76,9.53255682]
[1750050558134,12.089,156.85,156.78,0.14216157]
[1750050558349,3.0113316,156.84,156.78,3.15349317]
[1750050558654,3.0113316,156.83,156.78,0.14216157]
[1750050560969,4.70370255,156.83,156.78,0.14216157]
[1750050561754,4.70370255,156.82,156.78,0.14216157]
[1750050564748,4.70370255,156.81,156.76,4.70370255]
[1750050564946,5.52,156.85,156.76,25.98]
[1750050565146,4.70370255,156.81,156.76,30.68370255]
[1750050565461,4.70370255,156.82,156.77,0.14216157]
[1750050565759,4.70370255,156.82,156.77,4.84586412]
[1750050567563,4.70370255,156.83,156.77,4.84586412]
[1750050567760,4.70370255,156.82,156.77,4.84586412]
[1750050568481,5.52,156.85,156.77,11.22452352]
[1750050568689,4.70370255,156.82,156.77,11.22452352]
[1750050569363,4.70370255,156.82,156.77,6.52082097]
[1750050571177,4.70370255,156.81,156.77,6.52082097]
[1750050571383,5.52,156.85,156.77,6.52082097]
[1750050571548,4.70370255,156.81,156.77,0.14216157]
[1750050576980,26.0,156.82,156.74,1.5157]
[1750050577181,27.599,156.81,156.74,18.64964886]
[1750050577388,27.599,156.81,156.73,89.2]
[1750050577389,4.70370255,156.76,156.71,12.80848035]
[1750050577592,4.70370255,156.76,156.71,44.76964886]
[1750050577796,4.70370255,156.76,156.72,0.14216157]
[1750050577997,4.70370255,156.75,156.7,4.70370255]
[1750050578698,6.2737,156.79,156.7,4.70370255]
[1750050578888,4.70370255,156.76,156.71,4.70370255]
[1750050580896,6.2737,156.79,156.71,4.70370255]
[1750050581099,6.2737,156.79,156.73,4.70370255]
[1750050581100,4.70370255,156.79,156.73,4.70370255]
[1750050581284,4.70370255,156.79,156.74,4.70370255]
[1750050581486,4.70370255,156.79,156.74,30.84370255]
[1750050582976,4.70370255,156.79,156.75,0.14216157]
[1750050583178,4.70370255,156.81,156.75,18.79181043]
[1750050583379,4.70370255,156.81,156.76,4.70370255]
[1750050583774,4.70370255,156.81,156.77,0.14216157]
[1750050584192,4.70370255,156.82,156.77,4.84586412]
[1750050584388,10.80260255,156.83,156.77,4.84586412]
[1750050584594,4.70370255,156.82,156.77,4.84586412]
[1750050584898,4.70370255,156.83,156.77,4.84586412]
[1750050585077,4.70370255,156.83,156.77,11.22447924]
[1750050587205,4.70370255,156.83,156.77,6.52077669]
[1750050587511,4.70370255,156.83,156.77,11.22447924]
[1750050588591,4.70370255,156.82,156.77,11.22447924]
[1750050588999,4.70370255,156.81,156.77,18.79181043]
[1750050589384,4.70370255,156.82,156.77,18.79181043]
[1750050589596,4.70370255,156.82,156.77,25.1705718]
[1750050589800,7.1168,156.85,156.77,29.87427435]
[1750050590002,4.70370255,156.82,156.77,29.87427435]
[1750050592428,7.1168,156.85,156.79,0.14216157]
[1750050592605,4.70370255,156.83,156.79,0.14216157]
[1750050595022,4.70370255,156.83,156.78,26.16]
[1750050595331,4.70370255,156.82,156.78,26.16]
[1750050599512,7.1168,156.85,156.78,26.16]
[1750050599837,4.70370255,156.82,156.76,0.14216157]
[1750050600038,7.1168,156.85,156.78,0.14216157]
[1750050600240,4.70370255,156.82,156.78,0.14216157]
[1750050600603,4.70370255,156.81,156.77,0.14216157]
[1750050600808,3.01090576,156.81,156.77,0.14216157]
[1750050602635,3.01090576,156.82,156.77,0.14216157]
[1750050604941,7.1168,156.85,156.77,0.14216157]
[1750050605124,3.01090576,156.82,156.77,0.14216157]
[1750050607843,3.01090576,156.81,156.77,0.14216157]
[1750050608133,7.1168,156.85,156.77,0.14216157]
[1750050608438,3.01090576,156.81,156.77,0.14216157]
[1750050610030,3.01090576,156.8,156.77,0.14216157]
[1750050610221,3.01090576,156.81,156.77,0.14216157]
[1750050611818,3.01090576,156.81,156.76,18.79181043]
[1750050612021,3.01090576,156.81,156.76,44.91181043]
[1750050614240,3.01090576,156.81,156.76,44.89181043]
[1750050614440,3.01090576,156.78,156.74,0.14216157]
[1750050614661,26.0,156.82,156.73,26.1]
[1750050614662,3.01090576,156.77,156.73,26.1]
[1750050614829,3.01090576,156.78,156.73,26.1]
[1750050615011,3.01090576,156.78,156.73,0.14216157]
[1750050615339,3.01090576,156.78,156.73,26.24216157]
[1750050616329,3.01090576,156.78,156.74,26.1]
[1750050617831,3.01090576,156.77,156.73,26.1]
[1750050619647,3.01090576,156.78,156.73,29.11090576]
[1750050619948,3.01090576,156.78,156.73,26.1]
[1750050621346,3.01090576,156.78,156.72,28.18350204]
[1750050621533,3.01090576,156.78,156.73,26.12]
[1750050624648,3.01090576,156.78,156.73,29.13090576]
[1750050630259,3.01090576,156.78,156.73,35.51128805]
[1750050631138,3.01090576,156.78,156.73,32.50038229]
[1750050631333,3.01090576,156.79,156.74,3.15306733]
[1750050633053,1.5669,156.8,156.74,3.15306733]
[1750050633363,4.57780576,156.8,156.74,9.53298146]
[1750050634661,1.5669,156.8,156.74,9.53298146]
[1750050634858,4.57780576,156.8,156.74,9.53298146]
[1750050635167,3.01090576,156.79,156.74,9.53298146]
[1750050635339,3.01090576,156.79,156.74,6.5220757]
[1750050635540,3.01090576,156.79,156.74,9.53298146]
[1750050635952,1.5669,156.8,156.74,9.53298146]
[1750050636355,3.01090576,156.79,156.74,9.53298146]
[1750050636555,3.01090576,156.79,156.74,6.5220757]
[1750050636864,3.01090576,156.79,156.74,9.53298146]
[1750050637361,3.01090576,156.79,156.71,131.15288739]
[1750050637362,3.01090576,156.78,156.71,121.58107101]
[1750050637571,3.01090576,156.78,156.72,29.09090576]
[1750050638356,3.01090576,156.78,156.72,26.08]
[1750050638941,3.01090576,156.78,156.72,35.47146251]
[1750050640977,3.01090576,156.79,156.73,6.52250859]
[1750050641279,1.5669,156.8,156.74,18.64964886]
[1750050641449,1.5669,156.8,156.75,3.15306733]
[1750050641648,1.5669,156.8,156.75,29.23306733]
[1750050643574,1.5669,156.8,156.76,6.37917836]
[1750050647561,1.5669,156.8,156.76,9.39008412]
[1750050649385,1.5669,156.8,156.76,6.37917836]
[1750050649958,4.57780576,156.8,156.75,32.6015942]
[1750050650165,4.57780576,156.8,156.75,35.61249996]
[1750050650371,4.57780576,156.8,156.75,32.6015942]
[1750050652291,4.57780576,156.8,156.75,32.5815942]
[1750050652685,1.5669,156.8,156.75,32.5815942]
[1750050652875,1.5669,156.8,156.75,35.59249996]
[1750050653074,4.57780576,156.8,156.75,32.5815942]
[1750050653778,4.57780576,156.8,156.75,26.20216157]
[1750050654305,3.01090576,156.79,156.75,26.06]
[1750050654977,3.01090576,156.79,156.74,0.14216157]
[1750050655179,3.01090576,156.79,156.74,26.22216157]
[1750050656282,3.01090576,156.78,156.74,26.22216157]
[1750050656792,3.01090576,156.79,156.74,32.60210659]
[1750050657489,4.57780576,156.8,156.74,35.61301235]
[1750050658388,3.01090576,156.81,156.75,3.01090576]
[1750050659271,3.01090576,156.8,156.74,35.59301235]
[1750050664699,3.01090576,156.8,156.74,32.58210659]
[1750050670494,7.1223,156.83,156.77,3.01090576]
[1750050670495,10.13320576,156.83,156.77,3.01090576]
[1750050670702,3.01090576,156.82,156.77,26.0]
[1750050671606,3.01090576,156.82,156.77,32.37863802]
[1750050674893,3.01090576,156.81,156.77,32.37863802]
[1750050678613,10.13320576,156.83,156.78,18.79181043]
[1750050679410,3.01090576,156.82,156.78,18.79181043]
[1750050680915,3.01090576,156.82,156.79,6.37795777]
[1750050681118,10.13320576,156.83,156.79,6.37795777]
[1750050681323,3.01090576,156.82,156.79,6.37795777]
[1750050683522,5.58,156.83,156.8,0.14216157]
[1750050683825,14.32079575,156.87,156.84,0.42648471]
[1750050684118,14.32079575,156.87,156.86,3.15306733]
[1750050684418,5.56,156.9,156.86,3.15306733]
[1750050684634,5.56,156.9,156.87,3.01090576]
[1750050685123,8.57090576,156.9,156.86,0.14216157]
[1750050685620,3.01090576,156.89,156.86,0.14216157]
[1750050686116,8.57090576,156.9,156.86,0.14216157]
[1750050686824,10.25921255,156.9,156.86,0.14216157]
[1750050687201,5.56,156.9,156.86,0.14216157]
[1750050687522,10.25921255,156.9,156.86,0.14216157]
[1750050689228,5.56,156.9,156.86,0.14216157]
[1750050689407,4.69921255,156.89,156.86,0.14216157]
[1750050696611,10.25921255,156.9,156.86,0.14216157]
[1750050697811,4.69921255,156.89,156.86,0.14216157]
[1750050702812,5.56,156.9,156.86,4.84137412]
[1750050703015,5.56,156.9,156.88,0.14216157]
[1750050703241,4.69921255,156.92,156.88,26.10216157]
[1750050703468,4.69921255,156.91,156.88,26.10216157]
[1750050703641,7.6701,156.95,156.88,26.10216157]
[1750050703840,4.69921255,156.91,156.88,26.10216157]
[1750050705251,7.6701,156.95,156.88,26.10216157]
[1750050705252,1.5149,156.95,156.88,26.10216157]
[1750050705456,4.69921255,156.93,156.88,37.17560648]
[1750050706868,3.00624429,156.93,156.88,35.48263822]
[1750050708674,3.00624429,156.93,156.9,0.14216157]
[1750050709456,3.00624429,156.92,156.9,0.14216157]
[1750050713775,3.00624429,156.92,156.9,0.14216157]
[1750050714160,3.00624429,156.92,156.9,6.51557177]
[1750050714383,5.52,156.97,156.92,0.14216157]
[1750050714384,3.00624429,156.93,156.92,0.14216157]
[1750050719287,3.00624429,156.94,156.92,0.14216157]
[1750050722881,5.52,156.97,156.92,6.51479218]
[1750050723092,5.52,156.97,156.94,0.14216157]
[1750050723386,3.00624429,156.98,156.95,25.96]
[1750050724767,48.71243684,157.01,156.96,21.79805472]
[1750050724768,25.71868113,157.01,156.96,21.79805472]
[1750050724969,3.00624429,157.01,156.96,21.79805472]
[1750050725283,1.5223,157.03,156.96,21.79805472]
[1750050725284,1.5223,157.03,156.97,0.28432314]
[1750050725489,3.00624429,157.01,156.99,0.14216157]
[1750050725672,3.00624429,157.02,156.99,0.14216157]
[1750050725993,3.00624429,157.04,156.99,21.79805472]
[1750050726288,3.00624429,157.04,157.01,0.14216157]
[1750050726493,3.00624429,157.04,157.02,25.94]
[1750050726868,4.69060665,157.04,157.02,25.94]
[1750050730187,4.69060665,157.05,157.02,25.94]
[1750050732565,4.69060665,157.04,157.02,25.94]
[1750050732764,4.69060665,157.03,156.93,160.43030596]
[1750050733071,4.69060665,156.96,156.94,25.94]
[1750050733279,4.69060665,156.97,156.95,18.79181043]
[1750050733470,4.69060665,156.97,156.95,18.64964886]
[1750050733890,4.69060665,156.97,156.96,0.14216157]
[1750050734085,4.69060665,156.98,156.95,25.94]
[1750050734466,4.69060665,156.98,156.96,0.14216157]
[1750050734874,26.0,157.02,156.96,0.14216157]
[1750050735081,4.69060665,156.99,156.96,0.14216157]
[1750050735266,4.69060665,156.98,156.96,0.14216157]
[1750050735670,4.69060665,156.97,156.96,0.14216157]
[1750050739596,4.69060665,156.97,156.94,0.14216157]
[1750050739891,4.69060665,156.95,156.94,26.08216157]
[1750050740503,4.69060665,156.95,156.94,0.14216157]
[1750050744369,4.69060665,156.95,156.93,65.08800596]
[1750050744575,4.69060665,156.94,156.93,65.23016753]
[1750050748497,4.69060665,156.94,156.93,65.08800596]
[1750050754589,4.69060665,156.94,156.93,91.02800596]
[1750050759906,4.69060665,156.94,156.93,65.08800596]
[1750050760111,4.69060665,156.94,156.93,91.02800596]
[1750050760490,26.0,156.97,156.93,91.02800596]
[1750050760808,4.69060665,156.94,156.93,91.02800596]
[1750050765195,5.52,156.99,156.93,91.02800596]
[1750050765508,4.69060665,156.95,156.93,91.02800596]
[1750050766490,37.8821,157.0,156.93,91.02800596]
[1750050766692,4.69060665,156.95,156.93,91.02800596]
[1750050766895,1.6497,157.01,156.94,18.79181043]
[1750050767096,4.69060665,157.02,156.97,4.97492979]
[1750050767294,4.69060665,157.02,156.98,44.73181043]
[1750050767502,4.69060665,157.01,156.98,44.73181043]
[1750050768910,4.69060665,156.99,156.98,25.94]
[1750050769513,4.69060665,156.99,156.97,25.94]
[1750050769714,4.69060665,156.98,156.97,25.94]
[1750050770418,26.0,157.02,156.97,25.94]
[1750050770641,4.69060665,156.98,156.97,25.94]
[1750050771002,4.69060665,156.98,156.96,25.94]
[1750050771219,4.69060665,156.97,156.96,25.94]
[1750050772702,4.69060665,156.97,156.95,0.14216157]
[1750050772897,32.5,157.02,156.94,26.08216157]
[1750050772898,4.69060665,156.96,156.94,26.08216157]
[1750050773106,4.69060665,156.95,156.94,26.08216157]
[1750050774007,12.53680665,156.95,156.82,11.06734431]
[1750050774202,4.69060665,156.88,156.86,26.0]
[1750050774407,4.69060665,156.88,156.86,51.94]
[1750050774613,7.8462,156.95,156.87,18.64964886]
[1750050774809,7.8462,156.95,156.88,26.08216157]
[1750050774810,4.69060665,156.91,156.88,26.08216157]
[1750050775224,4.69060665,156.89,156.88,26.08216157]
[1750050775533,4.69060665,156.89,156.88,25.94]
[1750050776803,4.69060665,156.89,156.86,0.14216157]
[1750050777021,26.0,156.92,156.87,25.94]
[1750050778225,4.69060665,156.88,156.87,25.94]
[1750050782425,4.69060665,156.88,156.86,26.08216157]
[1750050783014,4.69060665,156.89,156.86,26.08216157]
[1750050784933,4.69060665,156.88,156.86,25.94]
[1750050786532,26.0,156.92,156.85,18.79181043]
[1750050786533,4.69060665,156.87,156.85,26.08216157]
[1750050786730,26.0,156.92,156.84,18.64964886]
[1750050786731,4.69060665,156.86,156.84,25.94]
[1750050787144,4.69060665,156.87,156.84,25.94]
[1750050789239,26.0,156.92,156.84,25.94]
[1750050789240,4.69060665,156.86,156.84,25.94]
[1750050792432,4.69060665,156.87,156.84,25.94]
[1750050794465,26.0,156.91,156.85,0.14216157]
[1750050794760,4.69060665,156.89,156.85,0.14216157]
[1750050795057,4.69060665,156.9,156.85,23.48241708]
[1750050796857,4.69060665,156.9,156.85,29.85770783]
[1750050797069,4.69060665,156.92,156.87,4.83276822]
[1750050797249,4.69060665,156.92,156.87,30.77276822]
[1750050797939,5.52,156.93,156.88,18.64964886]
[1750050798246,10.21060665,156.93,156.89,0.14216157]
[1750050800250,5.52,156.93,156.89,11.20660096]
[1750050800641,5.52,156.93,156.9,25.94]
[1750050801455,10.21060665,156.93,156.9,25.94]
[1750050803074,5.52,156.93,156.9,32.31345174]
[1750050803851,5.52,156.93,156.9,25.94]
[1750050804580,10.21060665,156.93,156.9,25.94]
[1750050807963,10.21060665,156.93,156.9,32.31345999]
[1750050809477,5.52,156.93,156.91,0.14216157]
[1750050813362,4.69060665,156.94,156.91,0.14216157]
[1750050814368,4.69060665,156.93,156.91,0.14216157]
[1750050816176,4.69060665,156.93,156.9,25.94]
[1750050822662,4.69060665,156.93,156.9,0.14216157]
[1750050822863,4.69060665,156.93,156.9,25.94]
[1750050823062,4.69060665,156.91,156.86,100.26571457]
[1750050823263,4.69060665,156.91,156.88,25.94]
[1750050823567,4.69060665,156.92,156.88,25.94]
[1750050826191,4.69060665,156.92,156.88,32.31429508]
[1750050827083,4.69060665,156.94,156.89,23.48241708]
[1750050827679,4.69060665,156.94,156.89,29.8559435]
[1750050828878,4.69060665,156.94,156.89,25.16533685]
[1750050829393,4.69060665,156.94,156.89,29.8559435]
[1750050831669,4.69060665,156.95,156.89,29.8559435]
[1750050834171,4.69060665,156.94,156.89,29.8559435]
[1750050835291,4.69060665,156.93,156.89,25.16533685]
[1750050835893,4.69060665,156.94,156.89,25.16533685]
[1750050839501,4.69060665,156.94,156.89,29.8559435]
[1750050839672,4.69060665,156.95,156.89,29.8559435]
[1750050840797,4.69060665,156.95,156.91,0.14216157]
[1750050840989,3.00569098,156.95,156.91,26.08216157]
[1750050842779,4.6966618,156.95,156.91,32.45517835]
[1750050845412,4.6966618,156.94,156.91,32.45517835]
[1750050846208,4.6966618,156.94,156.91,26.08216157]
[1750050846593,4.6966618,156.94,156.91,32.45522182]
[1750050848006,4.6966618,156.95,156.91,32.45522182]
[1750050854291,4.6966618,156.96,156.91,32.45522182]
[1750050854807,4.6966618,156.95,156.91,26.08216157]
[1750050856902,26.0,156.97,156.91,26.08216157]
[1750050857118,4.6966618,156.95,156.91,26.08216157]
[1750050862703,26.0,156.97,156.91,26.08216157]
[1750050862904,4.6966618,156.96,156.91,32.45519951]
[1750050863105,4.6966618,156.96,156.91,37.15186131]
[1750050863321,4.6966618,156.96,156.91,32.45519951]
[1750050864719,4.6966618,156.95,156.91,26.08216157]
[1750050864910,3.00601673,156.95,156.91,26.08216157]
[1750050865627,3.00601673,156.95,156.91,26.06216157]
[1750050866501,3.00601673,156.95,156.91,25.92]
[1750050866822,26.0,156.97,156.89,89.2]
[1750050866823,3.00601673,156.92,156.89,89.2]
[1750050867124,3.00601673,156.9,156.89,25.92]
[1750050867494,3.00601673,156.9,156.87,44.71181043]
[1750050867706,3.00601673,156.88,156.83,3.00601673]
[1750050867912,3.00601673,156.87,156.79,102.18841652]
[1750050868142,3.00601673,156.87,156.82,3.00601673]
[1750050868504,3.00601673,156.87,156.83,25.92]
[1750050869843,3.00601673,156.88,156.84,0.14216157]
[1750050872924,4.70068499,156.88,156.84,0.14216157]
[1750050880132,4.70068499,156.88,156.83,11.07700141]
[1750050881727,4.70068499,156.88,156.84,0.14216157]
[1750050884811,26.0,156.9,156.84,0.14216157]
[1750050885032,4.70068499,156.88,156.84,0.14216157]
[1750050892730,4.70068499,156.89,156.84,4.84284656]
[1750050894248,4.70068499,156.89,156.83,18.79181043]
[1750050894545,4.70068499,156.87,156.83,0.14216157]
[1750050895042,3.00892095,156.87,156.83,0.14216157]
[1750050895245,3.00892095,156.88,156.83,3.15108252]
[1750050897820,3.00892095,156.89,156.84,3.00892095]
[1750050898648,7.9764,156.93,156.85,3.15108252]
[1750050898830,3.00892095,156.91,156.85,3.00892095]
[1750050899723,3.00892095,156.91,156.86,3.00892095]
[1750050901346,1.577,156.93,156.86,3.00892095]
[1750050901537,3.00892095,156.96,156.9,3.00892095]
[1750050901733,13.6689,156.97,156.9,9.38240009]
[1750050902042,11.17782095,156.97,156.91,3.00892095]
[1750050903232,3.00892095,156.96,156.91,3.00892095]
[1750050903635,3.00892095,156.93,156.88,0.14216157]
[1750050903843,3.00892095,156.92,156.88,0.14216157]
[1750050904153,3.00892095,156.92,156.87,3.00892095]
[1750050904751,3.00892095,156.93,156.88,3.00892095]
[1750050905248,3.00892095,156.93,156.87,18.64964886]
[1750050905451,3.00892095,156.93,156.88,3.00892095]
[1750050906030,29.00892095,156.94,156.89,3.00892095]
[1750050908257,3.00892095,156.94,156.89,9.38278734]
[1750050908838,4.69698884,156.95,156.9,4.69698884]
[1750050909036,4.69698884,156.96,156.91,4.69698884]
[1750050909233,4.69698884,156.94,156.9,0.14216157]
[1750050909861,4.69698884,156.92,156.86,0.14216157]
[1750050910034,4.69698884,156.91,156.86,49.40879927]
[1750050910969,4.69698884,156.91,156.86,55.78381897]
[1750050912059,4.69698884,156.92,156.87,4.69698884]
[1750050914368,4.69698884,156.91,156.86,32.43718127]
[1750050914537,4.69698884,156.91,156.86,37.13417011]
[1750050916365,4.69698884,156.91,156.86,30.75915041]
[1750050917244,4.69698884,156.9,156.86,26.06216157]
[1750050918063,4.69698884,156.91,156.86,30.75915041]
[1750050918661,4.69698884,156.91,156.86,37.13415246]
[1750050922079,4.69698884,156.93,156.88,0.14216157]
[1750050922253,4.69698884,156.93,156.88,4.69698884]
[1750050922961,4.69698884,156.93,156.86,32.43716362]
[1750050922962,10.19698884,156.94,156.89,4.69698884]
[1750050923366,10.19698884,156.94,156.89,36.99085389]
[1750050924184,5.5,156.94,156.89,32.29386505]
[1750050924362,10.19698884,156.94,156.89,25.92]
[1750050924553,4.69698884,156.9,156.85,30.69698884]
[1750050924756,4.69698884,156.9,156.86,25.92]
[1750050925058,4.69698884,156.89,156.85,51.92]
[1750050925269,4.69698884,156.89,156.86,0.14216157]
[1750050925566,1.665,156.92,156.86,0.14216157]
[1750050925872,4.69698884,156.89,156.86,0.14216157]
[1750050928879,4.69698884,156.9,156.86,0.14216157]
[1750050929264,1.665,156.92,156.86,0.14216157]
[1750050929575,4.69698884,156.9,156.86,0.14216157]
[1750050932383,4.69698884,156.91,156.86,11.2142491]
[1750050933051,4.69698884,156.91,156.86,4.83915041]
[1750050933250,4.69698884,156.9,156.86,0.14216157]
[1750050933881,4.69698884,156.9,156.86,4.83915041]
[1750050934274,1.665,156.92,156.86,11.21424711]
[1750050934482,4.69698884,156.91,156.86,11.21424711]
[1750050935680,4.69698884,156.91,156.86,0.14216157]
[1750050935985,4.69698884,156.9,156.86,25.92]
[1750050937067,1.665,156.92,156.86,25.92]
[1750050937273,4.69698884,156.91,156.86,30.61698884]
[1750050939581,4.69698884,156.92,156.87,4.83915041]
[1750050939786,5.5,156.94,156.88,4.69698884]
[1750050939787,4.69698884,156.93,156.88,4.69698884]
[1750050940282,4.69698884,156.92,156.87,11.21355435]
[1750050941982,4.69698884,156.93,156.87,11.21355435]
[1750050942580,4.69698884,156.92,156.87,11.21355435]
[1750050944981,4.69698884,156.93,156.88,4.69698884]
[1750050946885,3.00666654,156.93,156.88,3.00666654]
[1750050952298,26.0,156.95,156.9,3.00666654]
[1750050952470,3.00666654,156.95,156.9,3.00666654]
[1750050952666,7.1467,156.96,156.91,0.14216157]
[1750050952874,10.15336654,156.96,156.91,0.14216157]
[1750050953075,3.00666654,156.95,156.91,0.14216157]
[1750050953304,3.00666654,156.92,156.88,0.14216157]
[1750050953582,3.00666654,156.91,156.88,0.14216157]
[1750050953785,3.00666654,156.92,156.88,0.14216157]
[1750050956909,31.5,156.94,156.89,3.00666654]
[1750050957109,5.5,156.94,156.93,3.00666654]
[1750050958880,5.5,156.94,156.93,4.69495068]
[1750050964601,5.5,156.94,156.92,4.83711225]
[1750050967493,5.5,156.94,156.92,0.14216157]
[1750050968005,5.5,156.94,156.89,89.48432314]
[1750050968202,10.19495068,156.94,156.9,26.04216157]
[1750050968508,10.19495068,156.94,156.9,30.73711225]
[1750050969577,4.69495068,156.94,156.9,30.73711225]
[1750050970376,4.69495068,156.95,156.9,30.73711225]
[1750050971194,27.08188374,156.98,156.9,30.73711225]
[1750050971382,4.69495068,156.95,156.9,4.83711225]
[1750050971585,4.69495068,156.95,156.9,30.73711225]
[1750050973392,4.69495068,156.94,156.9,30.73711225]
[1750050974811,4.69495068,156.95,156.9,30.73711225]
[1750050976919,4.69495068,156.95,156.9,37.11046853]
[1750050977097,4.69495068,156.96,156.91,4.69495068]
[1750050977812,21.58188374,156.98,156.94,4.69495068]
[1750050978110,4.69495068,156.97,156.94,0.14216157]
[1750050978514,26.27683442,156.98,156.94,0.14216157]
[1750050979211,21.58188374,156.98,156.94,0.14216157]
[1750050979419,26.27683442,156.98,156.94,0.14216157]
[1750050979608,21.58188374,156.98,156.94,4.83711225]
[1750050980618,21.58188374,156.98,156.94,11.20896416]
[1750050981910,21.58188374,156.98,156.96,0.14216157]
[1750050982318,21.58188374,156.98,156.96,4.83711225]
[1750050982517,21.58188374,156.98,156.96,30.73711225]
[1750050982825,21.58188374,156.98,156.97,4.83711225]
[1750050983112,5.5,157.01,156.98,0.14216157]
[1750050986826,10.19495068,157.01,156.97,0.14216157]
[1750050990027,5.5,157.01,156.97,4.83711225]
[1750050990214,5.5,157.01,156.97,11.20774749]
[1750050990410,5.5,157.01,156.99,0.14216157]